[Event "14e Open International de Quenza"]
[Site "Quenza, France"]
[Date "????.??.??"]
[Round "5.4"]
[White "Lagarde, Maxime"]
[Black "Bonelli Maestracci, Pierre Joseph"]
[Result "1/2-1/2"]
[TimeControl "5min+3s"]
[WhiteElo "2618"]
[BlackElo "2098"]

1. e4 {[%clk 00:05:03]} c5 {[%clk 00:05:03]} 2. Nf3 {[%clk 00:05:03]} d6 {[%clk
00:05:03]} 3. Bb5+ {[%clk 00:05:03]} Bd7 {[%clk 00:05:03]} 4. c4 {[%clk
00:05:03]} {[%emt 00:00:02]} Nf6 {[%clk 00:04:59]} {[%emt 00:00:07]} 5. Nc3
{[%clk 00:05:03]} {[%emt 00:00:01]} a6 {[%clk 00:04:58]} {[%emt 00:00:05]} 6.
Bxd7+ {[%clk 00:05:02]} {[%emt 00:00:05]} Qxd7 {[%clk 00:04:58]} {[%emt
00:00:01]} 7. d4 {[%clk 00:05:02]} {[%emt 00:00:02]} cxd4 {[%clk 00:04:58]}
{[%emt 00:00:02]} 8. Nxd4 {[%clk 00:05:02]} {[%emt 00:00:01]} e6 {[%clk
00:04:55]} {[%emt 00:00:07]} 9. O-O {[%clk 00:05:02]} {[%emt 00:00:02]} Be7
{[%clk 00:04:55]} 10. h3 {[%clk 00:04:59]} {[%emt 00:00:06]} O-O {[%clk
00:04:55]} {[%emt 00:00:02]} 11. Be3 {[%clk 00:04:59]} {[%emt 00:00:01]} Nc6
{[%clk 00:04:53]} {[%emt 00:00:05]} 12. Qe2 {[%clk 00:04:47]} {[%emt 00:00:14]}
Qc7 {[%clk 00:04:34]} {[%emt 00:00:22]} 13. Rac1 {[%clk 00:04:42]} {[%emt
00:00:08]} Nd7 {[%clk 00:04:30]} {[%emt 00:00:07]} 14. Rfd1 {[%clk 00:04:38]}
{[%emt 00:00:07]} Nxd4 {[%clk 00:03:48]} {[%emt 00:00:45]} 15. Bxd4 {[%clk
00:04:38]} {[%emt 00:00:02]} Bf6 {[%clk 00:03:48]} 16. b3 {[%clk 00:04:22]}
{[%emt 00:00:20]} Rfd8 {[%clk 00:03:42]} {[%emt 00:00:08]} 17. Qd2 {[%clk
00:03:53]} {[%emt 00:00:31]} Bxd4 {[%clk 00:03:17]} {[%emt 00:00:29]} 18. Qxd4
{[%clk 00:03:53]} {[%emt 00:00:01]} Nf6 {[%clk 00:03:17]} {[%emt 00:00:02]} 19.
Qe3 {[%clk 00:03:35]} {[%emt 00:00:21]} Qc5 {[%clk 00:03:06]} {[%emt 00:00:14]}
20. Rd3 {[%clk 00:02:12]} {[%emt 00:01:26]} Qxe3 {[%clk 00:02:57]} {[%emt
00:00:12]} 21. Rxe3 {[%clk 00:02:12]} {[%emt 00:00:01]} Kf8 {[%clk 00:02:57]}
{[%emt 00:00:03]} 22. Rd1 {[%clk 00:02:12]} {[%emt 00:00:03]} Ke7 {[%clk
00:02:57]} {[%emt 00:00:03]} 23. f4 {[%clk 00:02:05]} {[%emt 00:00:10]} Nd7
{[%clk 00:02:56]} {[%emt 00:00:04]} 24. Kf2 {[%clk 00:02:05]} {[%emt 00:00:03]}
Rab8 {[%clk 00:02:48]} {[%emt 00:00:11]} 25. Red3 {[%clk 00:02:00]} {[%emt
00:00:07]} Nc5 {[%clk 00:02:48]} {[%emt 00:00:02]} 26. R3d2 {[%clk 00:02:00]}
{[%emt 00:00:01]} b5 {[%clk 00:02:28]} {[%emt 00:00:23]} 27. b4 {[%clk
00:01:59]} {[%emt 00:00:04]} Na4 {[%clk 00:02:13]} {[%emt 00:00:18]} 28. Nxa4
bxa4 {[%clk 00:02:13]} 29. a3 {[%clk 00:01:58]} {[%emt 00:00:04]} Rbc8 {[%clk
00:02:05]} {[%emt 00:00:11]} 30. Rd4 {[%clk 00:01:58]} {[%emt 00:00:04]} f6
{[%clk 00:01:38]} {[%emt 00:00:30]} 31. e5 {[%clk 00:01:58]} {[%emt 00:00:01]}
fxe5 {[%clk 00:01:10]} {[%emt 00:00:31]} 32. fxe5 {[%clk 00:01:58]} {[%emt
00:00:01]} d5 {[%clk 00:01:10]} {[%emt 00:00:03]} 33. cxd5 {[%clk 00:01:56]}
{[%emt 00:00:05]} Rxd5 {[%clk 00:01:09]} {[%emt 00:00:04]} 34. Rxd5 {[%clk
00:01:56]} {[%emt 00:00:02]} exd5 {[%clk 00:01:09]} 35. Rxd5 {[%clk 00:01:56]}
{[%emt 00:00:01]} Rc3 {[%clk 00:01:05]} {[%emt 00:00:07]} 36. Ra5 {[%clk
00:01:55]} {[%emt 00:00:04]} Rxa3 {[%clk 00:01:04]} {[%emt 00:00:04]} 37. Rxa6
{[%clk 00:01:55]} {[%emt 00:00:01]} g6 {[%clk 00:00:52]} {[%emt 00:00:14]} 38.
Ra7+ {[%clk 00:01:43]} {[%emt 00:00:15]} Ke6 {[%clk 00:00:52]} {[%emt
00:00:02]} 39. Rxh7 {[%clk 00:01:43]} {[%emt 00:00:01]} Kxe5 {[%clk 00:00:50]}
{[%emt 00:00:05]} 40. Ra7 {[%clk 00:01:39]} {[%emt 00:00:07]} Kf6 {[%clk
00:00:50]} {[%emt 00:00:03]} 41. h4 {[%clk 00:01:36]} {[%emt 00:00:06]} Kf5
{[%clk 00:00:45]} {[%emt 00:00:07]} 42. Ra6 {[%clk 00:01:31]} {[%emt 00:00:09]}
Kg4 {[%clk 00:00:22]} {[%emt 00:00:25]} 43. Rxg6+ {[%clk 00:01:31]} {[%emt
00:00:03]} Kxh4 {[%clk 00:00:22]} {[%emt 00:00:01]} 44. Ra6 {[%clk 00:01:31]}
{[%emt 00:00:01]} Kg5 {[%clk 00:00:21]} {[%emt 00:00:04]} 45. Kg1 {[%clk
00:01:24]} {[%emt 00:00:10]} Ra2 {[%clk 00:00:21]} {[%emt 00:00:02]} 46. Kh2
{[%clk 00:01:22]} {[%emt 00:00:05]} a3 {[%clk 00:00:21]} {[%emt 00:00:02]} 47.
Kh3 {[%clk 00:01:19]} {[%emt 00:00:05]} Rb2 {[%clk 00:00:21]} {[%emt 00:00:03]}
48. Ra5+ {[%clk 00:01:19]} {[%emt 00:00:01]} Kg6 {[%clk 00:00:20]} {[%emt
00:00:04]} 49. g4 {[%clk 00:01:07]} {[%emt 00:00:15]} Rxb4 {[%clk 00:00:20]}
{[%emt 00:00:02]} 50. Rxa3 {[%clk 00:01:07]} {[%emt 00:00:01]} Rb1 {[%clk
00:00:15]} {[%emt 00:00:08]} 51. Ra6+ {[%clk 00:01:07]} {[%emt 00:00:04]} Kg5
{[%clk 00:00:15]} 52. Ra5+ {[%clk 00:01:07]} Kg6 {[%clk 00:00:15]} 53. Rc5
{[%clk 00:01:07]} {[%emt 00:00:03]} Ra1 {[%clk 00:00:14]} {[%emt 00:00:03]} 54.
Rc6+ {[%clk 00:01:05]} {[%emt 00:00:05]} Kg5 {[%clk 00:00:14]} 55. Rc5+ {[%clk
00:01:05]} Kg6 56. Rc6+ {[%emt 00:00:02]} Kg5 {[%clk 00:00:14]} 57. Rc5+ {[%clk
00:01:05]} Kg6 {[%emt 00:00:01]} 58. Rc6+ 1/2-1/2

[Event "14e Open International de Quenza"]
[Site "Quenza, France"]
[Date "????.??.??"]
[Round "5.5"]
[White "Carrolaggi, Xavier"]
[Black "Deladerriere, Apollo"]
[Result "0-1"]
[TimeControl "5min+3s"]
[WhiteElo "1732"]
[BlackElo "2131"]

1. e4 {[%clk 00:05:03]} {[%emt 00:03:34]} c6 {[%clk 00:05:03]} {[%emt
00:00:01]} 2. c4 {[%clk 00:05:03]} {[%emt 00:00:02]} d5 {[%clk 00:05:03]}
{[%emt 00:00:02]} 3. exd5 {[%clk 00:05:03]} cxd5 {[%clk 00:05:03]} {[%emt
00:00:01]} 4. cxd5 {[%clk 00:05:03]} Nf6 {[%clk 00:05:03]} {[%emt 00:00:02]} 5.
Nc3 {[%clk 00:05:03]} {[%emt 00:00:01]} Nxd5 {[%clk 00:05:03]} {[%emt
00:00:03]} 6. Bc4 {[%clk 00:05:03]} {[%emt 00:00:01]} e6 {[%clk 00:04:54]}
{[%emt 00:00:13]} 7. Nf3 {[%clk 00:05:03]} {[%emt 00:00:03]} Nc6 {[%clk
00:04:52]} {[%emt 00:00:04]} 8. O-O {[%clk 00:05:03]} {[%emt 00:00:03]} Nxc3
{[%clk 00:04:50]} {[%emt 00:00:05]} 9. dxc3 {[%clk 00:04:57]} {[%emt 00:00:09]}
Qxd1 {[%clk 00:04:24]} {[%emt 00:00:28]} 10. Rxd1 {[%clk 00:04:57]} {[%emt
00:00:02]} Be7 {[%clk 00:04:24]} {[%emt 00:00:02]} 11. Bf4 {[%clk 00:04:55]}
{[%emt 00:00:06]} O-O {[%clk 00:04:23]} {[%emt 00:00:03]} 12. Nd4 {[%clk
00:04:54]} {[%emt 00:00:04]} Bd7 {[%clk 00:04:11]} {[%emt 00:00:15]} 13. Nb5
{[%clk 00:04:51]} {[%emt 00:00:05]} Be8 {[%clk 00:03:58]} {[%emt 00:00:17]} 14.
Nd6 {[%clk 00:04:35]} {[%emt 00:00:19]} Na5 {[%clk 00:03:29]} {[%emt 00:00:32]}
15. Bf1 {[%clk 00:04:30]} {[%emt 00:00:07]} b6 {[%clk 00:03:17]} {[%emt
00:00:15]} 16. Nxe8 {[%clk 00:04:26]} {[%emt 00:00:07]} Rfxe8 {[%emt 00:00:02]}
17. Rd2 {[%clk 00:04:25]} {[%emt 00:00:03]} Red8 {[%clk 00:03:01]} {[%emt
00:00:19]} 18. Rad1 {[%clk 00:04:25]} Rxd2 {[%clk 00:02:44]} {[%emt 00:00:20]}
19. Rxd2 {[%clk 00:04:25]} {[%emt 00:00:02]} Rd8 {[%clk 00:02:44]} 20. Rxd8+
{[%clk 00:04:24]} {[%emt 00:00:04]} Bxd8 {[%clk 00:02:44]} 21. Bb8 {[%clk
00:04:24]} {[%emt 00:00:02]} Nc6 {[%clk 00:02:43]} {[%emt 00:00:05]} 22. Bd6
{[%emt 00:00:11]} Be7 {[%clk 00:02:16]} {[%emt 00:00:28]} 23. Bf4 {[%clk
00:03:36]} {[%emt 00:00:45]} a5 {[%clk 00:01:10]} {[%emt 00:01:10]} 24. Bb5
{[%clk 00:03:34]} {[%emt 00:00:05]} e5 {[%clk 00:00:42]} {[%emt 00:00:31]} 25.
Be3 {[%clk 00:03:32]} {[%emt 00:00:05]} Na7 {[%clk 00:00:35]} {[%emt 00:00:10]}
26. Bd7 {[%clk 00:03:21]} {[%emt 00:00:14]} Bc5 {[%clk 00:00:35]} {[%emt
00:00:01]} 27. Bxc5 {[%clk 00:03:19]} {[%emt 00:00:06]} bxc5 {[%clk 00:00:35]}
28. Kf1 {[%clk 00:03:19]} {[%emt 00:00:01]} Kf8 {[%clk 00:00:35]} 29. Ke2
{[%clk 00:03:18]} {[%emt 00:00:03]} Ke7 {[%clk 00:00:35]} 30. Ba4 {[%clk
00:03:18]} {[%emt 00:00:03]} Nc8 {[%clk 00:00:30]} {[%emt 00:00:08]} 31. Kd3
{[%clk 00:03:17]} {[%emt 00:00:04]} Nb6 {[%clk 00:00:30]} {[%emt 00:00:03]} 32.
Bb5 {[%clk 00:03:13]} {[%emt 00:00:07]} Ke6 {[%clk 00:00:28]} {[%emt 00:00:05]}
33. Ke4 {[%clk 00:03:09]} {[%emt 00:00:07]} f5+ {[%clk 00:00:28]} 34. Kd3
{[%clk 00:03:07]} {[%emt 00:00:06]} Kd6 {[%clk 00:00:28]} {[%emt 00:00:04]} 35.
c4 {[%clk 00:02:20]} {[%emt 00:00:49]} g5 {[%clk 00:00:27]} {[%emt 00:00:04]}
36. g3 {[%clk 00:02:20]} {[%emt 00:00:02]} Nc8 {[%clk 00:00:27]} {[%emt
00:00:02]} 37. a3 {[%clk 00:01:57]} {[%emt 00:00:27]} h5 {[%clk 00:00:14]}
{[%emt 00:00:16]} 38. Be8 {[%clk 00:01:55]} {[%emt 00:00:05]} h4 {[%clk
00:00:14]} {[%emt 00:00:02]} 39. Bg6 {[%clk 00:01:52]} {[%emt 00:00:05]} Ne7
{[%clk 00:00:14]} {[%emt 00:00:03]} 40. Bf7 {[%clk 00:01:49]} {[%emt 00:00:06]}
hxg3 {[%clk 00:00:13]} {[%emt 00:00:05]} 41. hxg3 {[%clk 00:01:49]} e4+ {[%clk
00:00:13]} {[%emt 00:00:03]} 42. Ke3 {[%clk 00:01:48]} {[%emt 00:00:04]} Ke5
{[%clk 00:00:13]} 43. Bh5 {[%clk 00:01:09]} {[%emt 00:00:42]} f4+ {[%clk
00:00:13]} {[%emt 00:00:01]} 44. gxf4+ {[%clk 00:01:07]} {[%emt 00:00:04]}
gxf4+ {[%clk 00:00:13]} 45. Ke2 {[%clk 00:01:07]} {[%emt 00:00:03]} Kd4 {[%clk
00:00:13]} 46. Bf7 {[%clk 00:01:07]} {[%emt 00:00:02]} Nc6 {[%clk 00:00:12]}
{[%emt 00:00:04]} 47. Bd5 {[%clk 00:01:03]} {[%emt 00:00:07]} Ne5 {[%clk
00:00:12]} 48. Be6 {[%clk 00:00:41]} {[%emt 00:00:25]} Nxc4 {[%clk 00:00:10]}
{[%emt 00:00:05]} 49. Bxc4 {[%clk 00:00:41]} {[%emt 00:00:02]} Kxc4 {[%clk
00:00:10]} 0-1

[Event "14e Open International de Quenza"]
[Site "Quenza, France"]
[Date "????.??.??"]
[Round "5.6"]
[White "Terrieux, Kevin"]
[Black "Guillemart, Serge"]
[Result "1-0"]
[TimeControl "5min+3s"]
[WhiteElo "2394"]
[BlackElo "2135"]

1. e4 {[%clk 00:05:03]} {[%emt 00:00:02]} c5 {[%clk 00:05:03]} {[%emt
00:00:01]} 2. Nf3 {[%clk 00:05:03]} e6 {[%clk 00:05:03]} {[%emt 00:00:01]} 3.
d4 {[%clk 00:05:03]} {[%emt 00:00:03]} cxd4 {[%clk 00:05:03]} {[%emt 00:00:01]}
4. Nxd4 {[%clk 00:05:03]} {[%emt 00:00:01]} Nf6 {[%clk 00:05:03]} 5. Nc3 {[%clk
00:05:03]} {[%emt 00:00:02]} Nc6 {[%clk 00:05:03]} 6. Nxc6 {[%clk 00:04:53]}
{[%emt 00:00:13]} bxc6 {[%clk 00:05:03]} {[%emt 00:00:01]} 7. e5 {[%clk
00:04:53]} {[%emt 00:00:02]} Nd5 {[%clk 00:05:03]} 8. Ne4 {[%clk 00:04:53]} Bb7
{[%clk 00:05:03]} {[%emt 00:00:02]} 9. Bd3 {[%clk 00:04:37]} {[%emt 00:00:18]}
c5 {[%clk 00:05:03]} {[%emt 00:00:03]} 10. O-O {[%clk 00:04:33]} {[%emt
00:00:07]} Qc7 {[%clk 00:05:03]} {[%emt 00:00:01]} 11. f4 {[%clk 00:04:19]}
{[%emt 00:00:18]} c4 {[%clk 00:04:59]} {[%emt 00:00:07]} 12. Be2 {[%clk
00:04:19]} {[%emt 00:00:01]} Be7 {[%clk 00:04:52]} {[%emt 00:00:10]} 13. Kh1
{[%clk 00:04:15]} {[%emt 00:00:06]} O-O {[%clk 00:04:52]} {[%emt 00:00:02]} 14.
Nd6 {[%clk 00:04:14]} {[%emt 00:00:05]} Bxd6 {[%clk 00:04:50]} {[%emt
00:00:04]} 15. exd6 {[%clk 00:04:14]} {[%emt 00:00:02]} Qc6 {[%clk 00:04:50]}
{[%emt 00:00:02]} 16. Rf3 {[%clk 00:03:59]} {[%emt 00:00:18]} f5 {[%clk
00:04:44]} {[%emt 00:00:09]} 17. Rg3 {[%clk 00:03:09]} {[%emt 00:00:51]} Rac8
{[%clk 00:04:40]} {[%emt 00:00:08]} 18. Qd4 {[%clk 00:03:08]} {[%emt 00:00:04]}
Nf6 {[%clk 00:04:31]} {[%emt 00:00:13]} 19. Bf3 {[%clk 00:02:33]} {[%emt
00:00:38]} Qb5 {[%clk 00:04:31]} {[%emt 00:00:02]} 20. Bxb7 {[%clk 00:02:28]}
{[%emt 00:00:08]} Qxb7 {[%clk 00:04:31]} {[%emt 00:00:02]} 21. Bd2 {[%clk
00:02:28]} {[%emt 00:00:02]} Qb6 {[%clk 00:04:08]} {[%emt 00:00:26]} 22. Bc3
{[%clk 00:02:19]} {[%emt 00:00:11]} Qxd4 {[%clk 00:04:04]} {[%emt 00:00:08]} 23.
Bxd4 {[%clk 00:02:19]} {[%emt 00:00:01]} Rf7 {[%clk 00:04:04]} 24. Ra3 {[%clk
00:02:06]} {[%emt 00:00:16]} Ne4 {[%clk 00:03:57]} {[%emt 00:00:10]} 25. Be5
{[%clk 00:02:00]} {[%emt 00:00:10]} Rc6 {[%clk 00:03:57]} {[%emt 00:00:03]} 26.
Rxa7 {[%clk 00:01:59]} {[%emt 00:00:05]} Nxd6 {[%clk 00:03:55]} {[%emt
00:00:04]} 27. Rd1 {[%clk 00:01:59]} {[%emt 00:00:02]} Ne4 {[%clk 00:03:49]}
{[%emt 00:00:09]} 28. Rdxd7 {[%clk 00:01:59]} {[%emt 00:00:02]} Rxd7 {[%clk
00:03:41]} {[%emt 00:00:11]} 29. Rxd7 {[%clk 00:01:59]} {[%emt 00:00:02]} Rb6
{[%clk 00:03:37]} {[%emt 00:00:08]} 30. Rxg7+ {[%clk 00:01:59]} {[%emt
00:00:02]} Kf8 {[%clk 00:03:37]} {[%emt 00:00:01]} 31. Rxh7 {[%clk 00:01:30]}
{[%emt 00:00:31]} c3 {[%clk 00:03:37]} {[%emt 00:00:02]} 32. b3 {[%clk
00:01:30]} {[%emt 00:00:01]} Rb5 {[%clk 00:03:32]} {[%emt 00:00:07]} 33. Rd7
{[%clk 00:01:26]} {[%emt 00:00:07]} Ke8 {[%clk 00:03:11]} {[%emt 00:00:24]} 34.
Rd4 {[%clk 00:01:26]} {[%emt 00:00:02]} Nf2+ {[%clk 00:02:55]} {[%emt
00:00:19]} 35. Kg1 {[%clk 00:01:26]} {[%emt 00:00:02]} Ng4 {[%clk 00:02:55]}
{[%emt 00:00:01]} 36. Rd3 {[%clk 00:01:24]} {[%emt 00:00:05]} 1-0

[Event "14e Open International de Quenza"]
[Site "Quenza, France"]
[Date "????.??.??"]
[Round "5.7"]
[White "Toktomushev, Teimur"]
[Black "Kurt, Sascha"]
[Result "1-0"]
[TimeControl "5min+3s"]
[WhiteElo "2401"]
[BlackElo "2303"]

1. d4 {[%clk 00:05:03]} Nf6 {[%clk 00:05:03]} {[%emt 00:00:03]} 2. c4 {[%clk
00:05:03]} {[%emt 00:00:02]} g6 {[%clk 00:05:00]} {[%emt 00:00:06]} 3. Nc3
{[%clk 00:05:03]} {[%emt 00:00:02]} Bg7 {[%clk 00:05:00]} {[%emt 00:00:01]} 4.
e4 {[%clk 00:05:03]} {[%emt 00:00:01]} d6 {[%clk 00:05:00]} {[%emt 00:00:01]} 5.
f3 {[%clk 00:05:03]} {[%emt 00:00:01]} O-O {[%clk 00:05:00]} {[%emt 00:00:04]}
6. Be3 {[%clk 00:05:03]} {[%emt 00:00:01]} a6 {[%clk 00:04:59]} {[%emt
00:00:04]} 7. Qd2 {[%clk 00:05:01]} {[%emt 00:00:05]} Nbd7 {[%clk 00:04:58]}
{[%emt 00:00:04]} 8. Nge2 {[%clk 00:04:59]} {[%emt 00:00:05]} c5 {[%clk
00:04:58]} {[%emt 00:00:02]} 9. O-O-O {[%clk 00:04:50]} {[%emt 00:00:12]} b5
{[%clk 00:04:47]} {[%emt 00:00:14]} 10. Bh6 {[%clk 00:04:45]} {[%emt 00:00:07]}
bxc4 {[%clk 00:03:42]} {[%emt 00:01:08]} 11. h4 {[%clk 00:04:44]} {[%emt
00:00:04]} cxd4 {[%clk 00:03:09]} {[%emt 00:00:37]} 12. Nxd4 {[%clk 00:04:44]}
{[%emt 00:00:02]} Ne5 {[%clk 00:02:45]} {[%emt 00:00:27]} 13. h5 {[%clk
00:04:38]} {[%emt 00:00:09]} Nxh5 {[%clk 00:02:36]} {[%emt 00:00:12]} 14. Bxg7
{[%clk 00:04:38]} {[%emt 00:00:03]} Kxg7 {[%clk 00:02:26]} {[%emt 00:00:13]} 15.
g4 {[%clk 00:04:38]} {[%emt 00:00:02]} Nxg4 {[%clk 00:01:46]} {[%emt 00:00:42]}
16. fxg4 {[%clk 00:04:38]} {[%emt 00:00:02]} Bxg4 {[%clk 00:01:46]} {[%emt
00:00:01]} 17. Be2 {[%clk 00:04:13]} {[%emt 00:00:27]} Bxe2 {[%clk 00:01:43]}
{[%emt 00:00:07]} 18. Ndxe2 {[%clk 00:04:13]} {[%emt 00:00:01]} Kg8 {[%clk
00:01:10]} {[%emt 00:00:36]} 19. Qh6 {[%clk 00:04:05]} {[%emt 00:00:10]} Qa5
{[%clk 00:00:56]} {[%emt 00:00:17]} 20. Rd5 {[%clk 00:04:03]} {[%emt 00:00:05]}
Qb6 {[%clk 00:00:50]} {[%emt 00:00:09]} 21. Rhxh5 {[%clk 00:04:00]} {[%emt
00:00:05]} Qg1+ {[%clk 00:00:49]} {[%emt 00:00:04]} 22. Nxg1 {[%clk 00:04:00]}
{[%emt 00:00:02]} 1-0

[Event "14e Open International de Quenza"]
[Site "Quenza, France"]
[Date "????.??.??"]
[Round "5.8"]
[White "Morison, Julien"]
[Black "Skripchenko, Almira"]
[Result "0-1"]
[TimeControl "5min+3s"]
[WhiteElo "1942"]
[BlackElo "2359"]

1. e4 {[%clk 00:05:03]} {[%emt 00:00:02]} d5 {[%clk 00:05:03]} {[%emt
00:00:02]} 2. exd5 {[%clk 00:05:03]} {[%emt 00:00:02]} Qxd5 {[%clk 00:05:03]} 3.
Nc3 {[%clk 00:05:03]} Qd8 {[%clk 00:05:03]} {[%emt 00:00:02]} 4. d4 {[%clk
00:05:03]} {[%emt 00:00:02]} Nf6 {[%clk 00:05:03]} {[%emt 00:00:03]} 5. Bc4
{[%clk 00:05:03]} g6 {[%clk 00:05:03]} {[%emt 00:00:04]} 6. Be3 {[%clk
00:05:03]} {[%emt 00:00:01]} Bg7 {[%clk 00:05:03]} {[%emt 00:00:01]} 7. Nf3
{[%clk 00:05:01]} {[%emt 00:00:06]} O-O {[%clk 00:04:58]} {[%emt 00:00:08]} 8.
O-O {[%clk 00:05:01]} {[%emt 00:00:02]} a6 {[%clk 00:04:56]} {[%emt 00:00:05]}
9. Ne5 {[%clk 00:04:57]} {[%emt 00:00:07]} e6 {[%clk 00:04:27]} {[%emt
00:00:32]} 10. Qf3 {[%clk 00:04:51]} {[%emt 00:00:08]} Nbd7 {[%clk 00:04:27]}
{[%emt 00:00:02]} 11. Rad1 {[%clk 00:04:49]} {[%emt 00:00:05]} Nb6 {[%clk
00:04:19]} {[%emt 00:00:11]} 12. Bb3 {[%clk 00:04:43]} {[%emt 00:00:09]} Nfd5
{[%clk 00:03:54]} {[%emt 00:00:28]} 13. Nxd5 {[%clk 00:04:38]} {[%emt
00:00:08]} exd5 {[%clk 00:03:54]} {[%emt 00:00:02]} 14. Rfe1 {[%clk 00:04:19]}
{[%emt 00:00:22]} Bf5 {[%clk 00:03:54]} {[%emt 00:00:01]} 15. Ng4 {[%clk
00:03:44]} {[%emt 00:00:38]} Be4 {[%clk 00:03:40]} {[%emt 00:00:17]} 16. Qg3
{[%clk 00:03:29]} {[%emt 00:00:17]} h5 {[%clk 00:03:18]} {[%emt 00:00:26]} 17.
Ne5 {[%clk 00:03:09]} {[%emt 00:00:23]} a5 {[%clk 00:03:15]} {[%emt 00:00:06]}
18. a4 {[%clk 00:03:07]} {[%emt 00:00:05]} h4 {[%clk 00:02:56]} {[%emt
00:00:22]} 19. Qg4 {[%clk 00:03:03]} {[%emt 00:00:05]} Bf5 {[%clk 00:02:54]}
{[%emt 00:00:06]} 20. Qf3 {[%clk 00:02:56]} {[%emt 00:00:11]} h3 {[%clk
00:02:36]} {[%emt 00:00:21]} 21. Qg3 {[%clk 00:02:43]} {[%emt 00:00:16]} hxg2
{[%clk 00:02:31]} {[%emt 00:00:08]} 22. Bg5 {[%clk 00:02:17]} {[%emt 00:00:29]}
f6 {[%clk 00:02:29]} {[%emt 00:00:06]} 23. Bh4 {[%clk 00:02:17]} g5 {[%clk
00:02:25]} {[%emt 00:00:06]} 24. Qf3 {[%clk 00:02:08]} {[%emt 00:00:11]} fxe5
{[%clk 00:02:20]} {[%emt 00:00:09]} 25. dxe5 {[%clk 00:02:06]} {[%emt
00:00:06]} gxh4 {[%clk 00:02:18]} {[%emt 00:00:05]} 26. Rxd5 {[%clk 00:02:02]}
{[%emt 00:00:08]} Nxd5 {[%clk 00:01:47]} {[%emt 00:00:33]} 27. Bxd5+ {[%clk
00:02:02]} Kh8 {[%clk 00:01:47]} {[%emt 00:00:01]} 28. Qh5+ {[%clk 00:01:57]}
{[%emt 00:00:08]} Bh7 {[%clk 00:01:47]} {[%emt 00:00:01]} 29. Be4 {[%clk
00:01:55]} {[%emt 00:00:05]} Bh6 {[%clk 00:01:47]} {[%emt 00:00:01]} 30. Qxh6
{[%clk 00:01:53]} {[%emt 00:00:06]} Qe7 {[%clk 00:01:47]} 31. Re3 {[%clk
00:01:30]} {[%emt 00:00:26]} Rad8 {[%clk 00:01:34]} {[%emt 00:00:15]} 32. Bd3
{[%clk 00:01:12]} {[%emt 00:00:21]} c5 {[%clk 00:00:42]} {[%emt 00:00:55]} 33.
Re4 {[%clk 00:00:48]} {[%emt 00:00:27]} Rd4 {[%clk 00:00:42]} {[%emt 00:00:03]}
34. Re3 {[%clk 00:00:22]} {[%emt 00:00:30]} Rdf4 {[%clk 00:00:39]} {[%emt
00:00:06]} 35. Re4 {[%clk 00:00:06]} {[%emt 00:00:19]} Rxe4 {[%clk 00:00:19]}
{[%emt 00:00:24]} 36. Bxe4 {[%clk 00:00:06]} Qg7 {[%clk 00:00:12]} {[%emt
00:00:09]} 37. Qxh4 {[%clk 00:00:04]} {[%emt 00:00:04]} Re8 {[%clk 00:00:09]}
{[%emt 00:00:03]} 38. e6 {[%emt 00:00:10]} Re7 {[%emt 00:00:02]} 39. Bxh7
{[%emt 00:00:02]} Qxh7 {[%emt 00:00:01]} 0-1